Cogmind - Beta 16.1 @@@ ROGUE MODE // 2026.04.02 @ 21:41:32 Player: Rainbow Dash Result: Destroyed by S-10 Pest with Light Assault Rifle Performance ------------- Evolutions (0) 0 Regions Visited (2) 400 Robots Destroyed (20) 100 Value Destroyed (449) 449 Prototype IDs (0) 0 Alien Tech Used (0) 0 Bonus (0) 0 TOTAL SCORE: 949 Bonus ------- None Cogmind --------- Core Integrity 0/250 Matter 224/300 Energy 103/265 System Corruption 0% Temperature Warm (146) Movement Walking (190) Ox1 Location -10/Mines Parts ------- > --- POWER (1) -------- Improved Ion Engine > --- PROPULSION (2) --- Aluminum Leg > --- UTILITY (2) ------ Light Armor Plating > --- WEAPON (2) ------- Spread Laser Light Assault Rifle > --- INVENTORY (5) ---- Seismic Detector Spread Laser Grenade Launcher Datajack Peak State ------------ > --- POWER ------------ Improved Ion Engine > --- PROPULSION ------- Aluminum Leg Aluminum Leg > --- UTILITY ---------- Medium Storage Unit Seismic Detector > --- WEAPON ----------- Spread Laser Spread Laser > --- INVENTORY -------- Improved Ion Engine Aluminum Leg Aluminum Leg Light Armor Plating Light Armor Plating Light Armor Plating Spread Laser Light Assault Rifle Grenade Launcher Datajack [Rating: 11] Favorites ----------- Power Ion Engine Engine Ion Engine Propulsion Aluminum Leg Leg Aluminum Leg Utility Seismic Detector Device Seismic Detector Storage Medium Storage Unit Protection Light Armor Plating Weapon Light Assault Rifle Energy Gun Spread Laser Ballistic Gun Light Assault Rifle Launcher Grenade Launcher Build | -11 -10 -10 ------- Run | Yrd Mat Min Slots Evolved . | . . . Power . | . . . Propulsion . | . . . Utility . | . . . Weapon . | . . . Parts Attached 23 | 7 11 5 Power 4 | 1 2 1 Engine 4 | 1 2 1 Core . | . . . Reactor . | . . . Propulsion 5 | 2 2 1 Treads . | . . . Leg 5 | 2 2 1 Wheel . | . . . Hover . | . . . Flight . | . . . Utility 7 | 2 4 1 Device 2 | 1 1 . Storage 2 | 1 1 . Processor . | . . . Hackware . | . . . Protection 3 | . 2 1 Artifact . | . . . Weapon 7 | 2 3 2 Energy Gun 3 | . 2 1 Energy Cannon . | . . . Ballistic Gun 3 | 2 . 1 Ballistic Cannon . | . . . Launcher 1 | . 1 . Special Weapon . | . . . Impact Weapon . | . . . Slashing Weapon . | . . . Piercing Weapon . | . . . Special Melee Weapon . | . . . Unidentified Prototypes . | . . . Parts Lost 7 | . . 7 Power 1 | . . 1 Propulsion 3 | . . 3 Utility 2 | . . 2 Weapon 1 | . . 1 Highest Loss Streak 3 | . . 3 To Critical Strikes . | . . . Average Backups 7 | . 7 6 Power . | . . 1 Propulsion 1 | . 1 . Utility 1 | . 1 1 Weapon 2 | . 2 2 Tool/Special . | . . . Unused Backups 4 | . 3 1 Power 1 | . 1 . Propulsion . | . . . Utility . | . . . Weapon 2 | . 2 . Tool/Special 1 | . . 1 Average Slot Usage (%) 98 | . 99 95 Engine 14 | . 14 14 Leg 27 | . 28 25 Device 11 | . 13 3 Storage 13 | . 14 12 Protection 2 | . . 10 Energy Gun 7 | . 4 17 Ballistic Gun 19 | . 23 8 Peak Build Rating 11 | 7 11 11 Average Rating 8 | 5 8 9 On Entrance 6 | . 7 11 Avg Prop Armor Cover (%) . | . . . Naked Turns . | . . . Heaviest Build 26 | 14 24 26 Greatest Support 20 | 20 20 20 Greatest Overweight (x) 2 | 1 1 2 Average Overweight (x) . | . . 1 Largest Inventory Capacity 10 | 8 10 10 Average Capacity 8 | 7 8 9 Most Carried 10 | 2 10 10 Average Carried 7 | . 7 6 Final Capacity 10 | 8 10 5 Final Carried 10 | 1 10 4 Class Distribution -------------------- 100% | Mutant Dominant Class ---------------- Mutant | -10/Materials Mutant | -10/Mines Resources | -11 -10 -10 ----------- Run | Yrd Mat Min Matter Collected 729 | 215 420 94 Remotely . | . . . Salvage Created 493 | 11 408 74 Parts 34 | 3 30 1 Haulers Intercepted 2 | . 2 . Recyclers Shooed 1 | 1 . . Parts Field Recycled . | . . . Retrieved Matter . | . . . Parts Self-Destructed . | . . . Prevented . | . . . Parts Restored . | . . . Kills | -11 -10 -10 ------- Run | Yrd Mat Min Combat Hostiles Destroyed 26 | . 12 14 Guns 18 | . 8 10 AOE 8 | . 4 4 Classes Destroyed 7 | 1 4 2 Tunneler 1 | 1 . . Hauler 2 | . 2 . Watcher 2 | . 2 . Swarmer 7 | . 6 1 Grunt 6 | . 6 . Demolisher 2 | . . 2 Assembled 11 | . . 11 Best Kill Streak 6 | 1 3 6 Combat Bots Only 6 | . 3 6 Max Kills in Single Turn 2 | 1 2 2 Gunslinging . | . . . Exploded 2 | . 2 2 Melee . | . . . Uniques/NPCs Destroyed . | . . . Combat | -11 -10 -10 -------- Run | Yrd Mat Min Hostile Shots Fired 130 | . 52 78 Missed 37 | . 17 20 Hits 93 | . 35 58 Melee 6 | . . 6 Projectile 87 | . 35 52 AOE 10 | . . 10 Critical Strikes 1 | . . 1 Part Disruptions 2 | . . 2 Damage Taken 1467 | . 458 1009 Core 255 | . 91 164 Absorbed by Shields . | . . . Core Remaining (%) 100 | 100 . . Volleys Fired 98 | 8 40 50 Largest 2 | 2 2 2 Hottest 130 | 40 50 130 Shots Fired 168 | 16 80 72 Gun 161 | 16 77 68 Cannon . | . . . Launcher 7 | . 3 4 Special . | . . . Kinetic 125 | 16 77 32 Thermal 36 | . . 36 Explosive 7 | . 3 4 Electromagnetic . | . . . Robot Hit Streak 18 | 4 18 7 Robot Miss Streak 11 | 1 6 11 Penetration Max . | . . . Secondary Targets 3 | . . 3 Max Gunslinging Chain 1 | . . 1 Shots Hit Robots 104 | 11 45 48 Core Hits 84 | 2 32 50 Critical Kills . | . . . Critical Parts Destroyed . | . . . Critical Strikes . | . . . Melee Attacks . | . . . Impact . | . . . Slashing . | . . . Piercing . | . . . Sneak Attacks . | . . . Combat Hostiles . | . . . Follow-up Attacks . | . . . Damage Inflicted 1432 | 102 603 727 Guns 1062 | 102 482 478 Cannons . | . . . Explosions 361 | . 112 249 Melee . | . . . Ramming 9 | . 9 . Kinetic 717 | 102 482 133 Thermal 345 | . . 345 Explosive 361 | . 112 249 Electromagnetic . | . . . Impact . | . . . Slashing . | . . . Piercing . | . . . Highest Corruption . | . . . Average Corruption . | . . . Corruption Purged . | . . . Corruption Blocked . | . . . Overload Shots . | . . . Overflow Damage 10 | . 5 5 Projectiles . | . . . Explosions 10 | . 5 5 Melee . | . . . Knockbacks . | . . . Impact . | . . . Kinetic . | . . . Secondary . | . . . Self-Inflicted Damage 65 | . 39 26 Shots 2 | . 1 1 Rammed . | . . . Targets Rammed 3 | . 3 . Kicked 3 | . 3 . Crushed . | . . . Highest Temperature 299 | . 15 299 Average Temperature 98 | . 7 116 Received Heat Transfer 422 | . 162 260 Effects 1 | . . 1 Interference 1 | . . 1 Siege Activations . | . . . Martial Activations . | . . . Shielding Activations . | . . . Robots Disrupted . | . . . Combat Hostiles . | . . . Robots Corrupted . | . . . Combat Hostiles . | . . . Parts Fried . | . . . Impact Corruptions . | . . . Robots Melted . | . . . Combat Hostiles . | . . . Parts Melted . | . . . Heat Transferred 445 | . . 445 Parts Sabotaged . | . . . Parts Stolen . | . . . Parts Stripped . | . . . Power Chain Reactions . | . . . Alert | -11 -10 -10 ------- Run | Yrd Mat Min Maximum Alert Level . | . . . Low Security (%) 100 | 100 100 100 Level 1 . | . . . Level 2 . | . . . Level 3 . | . . . Level 4 . | . . . Level 5 . | . . . High Security . | . . . Max Security . | . . . Peak Influence 148 | 5 148 40 Initial 8 | . . 8 Average 42 | . 58 5 Influence Increases 519 | 5 420 94 Destroy 0b10 Robot/C 300 | . 240 60 Destroy 0b10 Robot/NC 25 | 5 20 . Destroy Leader 68 | . 58 10 Successful Hack 32 | . 32 . Destroy Structure 34 | . 10 24 Lose Combat Pursuer 60 | . 60 . Influence Decreases 509 | 5 398 106 Entered New Map 14 | . . 14 Time Decay 455 | 5 398 52 Lost Part 40 | . . 40 Squads Dispatched 1 | . 1 . Investigation . | . . . Extermination . | . . . Reinforcement 1 | . 1 . Assault . | . . . Garrison . | . . . Intercept . | . . . Searches Triggered . | . . . Construction Impeded . | . . . Haulers Reinforced . | . . . Active Scanning Responses . | . . . Cargo Convoy Interrupts . | . . . Stealth | -11 -10 -10 --------- Run | Yrd Mat Min Distress Signals 2 | . 1 1 Communications Jammed . | . . . Distress Signals . | . . . Times Spotted 43 | . 20 23 Peak Tracking Total 6 | . 3 6 Tactical Retreats 7 | . 3 4 Traps | -11 -10 -10 ------- Run | Yrd Mat Min Traps Triggered 1 | . 1 . Indirectly . | . . . Trap Hack Attempts . | . . . Triggered . | . . . Disarmed . | . . . Reprogrammed . | . . . Reused . | . . . Traps Extracted . | . . . Installed . | . . . Triggered . | . . . Machines | -11 -10 -10 ---------- Run | Yrd Mat Min Machines Disabled . | . . . Max in Single Turn . | . . . Machines Repaired . | . . . Machines Dismantled . | . . . Machines Sabotaged . | . . . Overloaded Fab Kills . | . . . Hacking | -11 -10 -10 --------- Run | Yrd Mat Min Machines Accessed 7 | . 7 . Terminals 6 | . 6 . Fabricators . | . . . Repair Stations . | . . . Recycling Units 1 | . 1 . Scanalyzers . | . . . Garrison Access . | . . . Total Hacks 17 | . 17 . Successful 4 | . 4 . Failed 13 | . 13 . Catastrophic 2 | . 2 . Database Lockouts . | . . . Manual 4 | . 4 . Terminals 14 | . 14 . Fabricators . | . . . Repair Stations . | . . . Recycling Units 3 | . 3 . Scanalyzers . | . . . Garrison Access . | . . . Terminal Hacks 4 | . 4 . Terminal Index 1 | . 1 . Locate Traps 3 | . 3 . Fabricator Hacks . | . . . Repair Station Hacks . | . . . Recycling Unit Hacks . | . . . Scanalyzer . | . . . Garrison Access Hacks . | . . . Unauthorized Hacks . | . . . Terminals . | . . . Fabricators . | . . . Repair Stations . | . . . Recycling Units . | . . . Scanalyzers . | . . . Garrison Access . | . . . Data Cores Recovered . | . . . Used . | . . . Hacking Detections 7 | . 7 . Full Trace Events 1 | . 1 . Feedback Events . | . . . Feedback Blocked . | . . . Robot Schematics Acquired . | . . . Robots Built . | . . . Authchips . | . . . Time . | . . . Total Robot Build Rating . | . . . Part Schematics Acquired . | . . . Parts Built . | . . . Authchips . | . . . Time . | . . . Total Part Build Rating . | . . . Part Studies Acquired . | . . . Parts Repaired . | . . . Time . | . . . Parts Recycled . | . . . Recycled Matter . | . . . Retrieved Matter . | . . . Retrieved Components . | . . . Parts Scanalyzed . | . . . Part Schematics Acquired . | . . . Parts Damaged . | . . . Bothacking | -11 -10 -10 ------------ Run | Yrd Mat Min Used RIF Installer . | . . . Robots Hacked . | . . . Non-combat . | . . . Combat . | . . . Robot Hacks Applied . | . . . Relay Couplers Released . | . . . Fabnet Peak Effective % . | . . . Robots Rewired . | . . . Allies Hacked . | . . . Hacks Repelled . | . . . Allies | -11 -10 -10 -------- Run | Yrd Mat Min Total Allies . | . . . Largest Group . | . . . Highest-Rated Group . | . . . Highest-Rated Ally . | . . . Total Orders . | . . . Ally Attacks . | . . . Total Damage . | . . . Kills . | . . . Allies Corrupted . | . . . Allies Melted . | . . . Intel | -11 -10 -10 ------- Run | Yrd Mat Min Active Infowar (turns) 1185 | 31 1069 85 Seismic 1185 | 31 1069 85 Robot Analysis Total . | . . . Derelict Logs Recovered . | . . . Drone Launches . | . . . Drone Recoveries . | . . . Exploration | -11 -10 -10 ------------- Run | Yrd Mat Min Turns Passed 1544 | 95 1091 358 Spaces Moved 838 | 49 686 103 Core 6 | 6 . . Treads . | . . . Legs 832 | 43 686 103 Wheels . | . . . Hover . | . . . Flight . | . . . Fastest Speed 50 | 50 120 190 Average Speed 137 | 124 129 190 Slowest Speed 260 | 190 190 260 Overloaded Moves . | . . . Propulsion Burnouts . | . . . Robots Hopped . | . . . Potential Cave-ins . | . . . Cave-ins Triggered . | . . . Exploration Rate (%) 41 | 3 87 34 Regions Visited 2 Branch Regions 1 Pre-discovered Areas . | . . . Known Exits Taken . | . . . Unknown Exits Taken 2 | 1 1 . Scrap Searched . | . . . Spaces Dug . | . . . Terrain Destroyed 40 | . 8 32 Melee . | . . . Projectile . | . . . AOE 40 | . 8 32 Terrain Rammed . | . . . Walls Destroyed . | . . . Machines Disabled . | . . . Actions | -11 -10 -10 --------- Run | Yrd Mat Min Total 1078 | 66 815 197 Wait 81 | . 49 32 Move 836 | 48 685 103 Hop . | . . . Pick Up 15 | 3 12 . Fast Attach 7 | 5 2 . Attach 9 | 2 1 6 Detach . | . . . Swap 18 | . 13 5 Drop 11 | . 10 1 Fire 98 | 8 40 50 Melee . | . . . Ram . | . . . Kick 3 | . 3 . Crush . | . . . Escape Stasis . | . . . Rewire . | . . . Trap . | . . . Miscellaneous . | . . . Route ------- -11/Scrapyard -10/Materials (discovered 5 exits: [*Mat x3] / [*Min] / [*Sub]) -10/Mines History --------- Turn | Location | Event 8 | -11/Scrapyard | Discovered new exit (range 16) 96 | -11/Scrapyard | Entered Materials 221 | -10/Materials | Discovered new exit (range 3) 306 | -10/Materials | Build established: Mutant 656 | -10/Materials | Discovered new exit (range 15) 702 | -10/Materials | Discovered new exit (range 16) 788 | -10/Materials | Discovered new exit (range 10) 832 | -10/Materials | Discovered new exit (range 7) 1187 | -10/Materials | Entered Mines 1198 | -10/Mines | Assembled infested the area 1235 | -10/Mines | Core integrity fell below 50% 1368 | -10/Mines | Core integrity fell below 20% 1373 | -10/Mines | Lost 3 parts (2n1w) 1545 | -10/Mines | Destroyed by S-10 Pest with Light Assault Rifle Last Messages --------------- 01401_ U-05 Engineer lays Concrete. 01402_ as-88290 destroyed. 01402_ as-54307 destroyed. 01403_ The unstable cave ceiling collapses. 01403_ U-05 Engineer lays Concrete. 01406_ as-98831 sneak attacks. 01406_ U-05 Engineer destroyed. 01410_ The unstable cave ceiling collapses. 01415_ as-10314 destroyed. 01415_ Switching to secondary target: as-98831. 01418_ as-98831 destroyed. 01443_ K-01 Serf collects debris. 01481_ Aluminum Leg destroyed. 01484_ as-59244 destroyed. 01487_ Acquired 15 matter. 01490_ Dropped Med. Storage Unit. 01527_ S-10 Pest destroyed. 01536_ Overheating: System interference. 01536_ Lgt. Assault Rifle temporarily disabled. 01542_ Imp. Ion Engine destroyed. Map ----- +----------------------------------------------------+ | ????????????????????????????# % ! | | ??????????????????## ???????# ##### | | ??????????????????? ???????# #???## | | ???????????????????# ?????## ##???## | | ???????????????????# #????# ##???## | | ???????????????????# ????# %###### | | ???????????????????# ???# % | | ??????????????????## #?## ####### | | ?????????????????## ## ###?????# | | ?????????????????# ##???????# | | ?????????????????# #????????# | | ?????????????????## ## #????????# | | ??????????????????# #?## ##????????# | | ??????????????????# #??## #????????? | | ??????????????????# #???# #????????? | | ??????????????????# ##??# #??????????# | | ??????????????????# #### ####### #??? | | ?????????????????## ! #???? | | ????????????????## #???? | | ????????#?#????## ########### #??? | | ????????# ???# ##???????????? | | ????????# ""???# #???????????????? | | ????????# """??# #??????????????????? | | ????????# """??# ##??????????????????? | | ????????# ?# ###???????????????????? | | ????????# """ ##@ #?????????????????????? | | ????????# """ =% #?????????????????????? | | ????????# """=%s #?????????????????????? | | ????????# #####?????????????????????? | | ????????######??????????????????????????? | | ????????????????????????????????????????? | | ????????????????????????????????????????? | | | | | | | | | | | | | | | | | | | | | | | | | | | | | | | | | | | | | +----------------------------------------------------+ Best States ------------- Heat Dissipation 25 Energy Generation 12 Energy Capacity 265 Matter Stores 300 Matter Capacity 300 Sight Range 16 Terrain Scan Density 10 Armor Coverage 150 Evasion (%) 55 Item Schematics ----------------- None Robot Schematics ------------------ None Fabricated ------------ Nothing Repaired ---------- Nothing Studied --------- None Alien Tech Used ----------------- None Achievements -------------- None Challenges ------------ None Game ------ Seed MobileDynamicRigger Manual? 0 Play Time 00:20:57 Cumulative 135.4 hours Start 2026.04.02 @ 21:21:11 End 2026.04.02 @ 21:41:32 Sessions 1 Manual Loads 0 Difficulty Rogue Special Mode None Game No. 127 Rogue 82 Adventurer 45 Explorer 0 Win Type - Total 3 Types 2/0/0/1/0/0/0/0/0/0 Lore% 69 Gallery% 58 Achievement% 43 Wizard Run 0 Options --------- Layout 0 ASCII 1 Keyboard 1 Movement Numpad Keybinds 0 Fullscreen 1 Font 24/Smallcaps Map View 76x50 Zoom Use 0% Tactical HUD 1 Map Filters NONE Filters NONE Steam 1 RUN: a5c7a310-fe5e-48c7-86da-28d989d224cc